{"text_format":"1","workbook":"xlsx","n_sheets":3,"sheets":["省エネルギー量算出の計算","年間稼働時間の計算過程","蛍光灯消費電力データ"],"not_rendered":{"charts":0,"images":0,"macros":1,"external_links":0,"defined_names":11,"comments":0,"pivot_tables":0},"unopened":[],"bounds":{"document_bytes":16777216,"sheet_cells":100000,"rows_first":2000,"rows_last":500,"rows_between":2000,"halvings":0,"cell_chars":16384,"cell_head_chars":4096},"cells_cut":0,"cells_raw":0,"read":"whole","date_system":"1900"}

{"sheet":"省エネルギー量算出の計算","index":0,"n_rows":42,"n_cols":36,"rows_kept":42,"cut":false,"hidden":false,"merged":[[9,4,9,9],[9,10,9,16]]}
[null,null,null,null,"行の追加/削減は左上のボタンを押してください。"]
[]
[null,null,null,null,"*1:　設置する部屋名称またはエリア名称など記入してください。配置図にも部屋名称またはエリア名称などを明示してください。"]
[null,null,null,null,"*2:　既存設備の\"種別\"をプルダウンより選択してください。"]
[null,null,null,null,"*3:　既存設備の”種類・灯数等”をプルダウンより選択してください。"]
[null,null,null,null,"*4:　年間稼働時間は、\"年間稼働時間の計算過程シート\"にその計算過程を示してください。"]
[null,null,null,null,"*5：　調光制御機能等を有する照明器具が補助対象です。"]
[null,null,null,null,"*6：　表右、最下部の\"省電力量[kWh/年]\"を交付申請書の「4-1_二酸化炭素排出量簡易換算シート」の\"④省エネルギー量\"に転記してください。"]
[]
[null,null,null,null,"既存設備の年間消費電力量",null,null,null,null,null,"導入予定設備の年間消費電力量",null,null,null,null,null,null,null,null,null,{"$f":"IF(OFFSET(U10,-1,0)=\"例\",1,N(INDIRECT(\"R[-1]C\",FALSE))+1)","v":1},null,null,null,{"$f":"IFERROR(VLOOKUP(X10,蛍光灯消費電力データ!$B:$C,2,0),\"\")","v":""},null,null,1E-3,{"$f":"IFERROR(Y10*Z10*AA10*AB10,\"\")","v":""},null,null,0.95,"既存設備と\n同じ",null,1E-3,{"$f":"AE10*AF10*Z10*AH10*AI10","v":0}]
[null,"項\n番","設置場所 *1","既存設備\n種別 *2","既存設備\n種類・灯数等 *3","既存設備\n定格消費電力\n[W]","年間稼働時間 *4\n[h/年]","既存設備台数\n[台]","単位変更\n1/1,000\n[W⇒kW]","既存設備\n消費電力量\n [kWh/年]","導入予定設備の型番等","導入予定設備\n定格消費電力\n[W]","調光係数 *5","年間稼働時間\n[h/年]","導入予定設備\n導入予定台数\n[台]","単位変更\n1/1,000\n[W⇒kW]","導入予定設備\n消費電力量\n [kWh/年]"]
[null,"例","会議室1","直管蛍光ランプ","直管蛍光ランプFHF16形　1灯用　・　高出力26",{"$f":"IFERROR(VLOOKUP(E12,蛍光灯消費電力データ!$B:$C,2,0),\"\")","v":26},160,10,1E-3,{"$f":"IFERROR(F12*G12*H12*I12,\"\")","v":41.6},"ABC-XXX-20W",15,0.95,"既存設備と\n同じ",10,1E-3,{"$f":"L12*M12*G12*O12*P12","v":22.8}]
[null,{"$f":"IF(OFFSET(B13,-1,0)=\"例\",1,N(INDIRECT(\"R[-1]C\",FALSE))+1)","v":1},null,null,null,{"$f":"IFERROR(VLOOKUP(E13,蛍光灯消費電力データ!$B:$C,2,0),\"\")","v":""},null,null,1E-3,"",null,null,0.95,"既存設備と\n同じ",null,1E-3,{"$f":"L13*M13*G13*O13*P13","v":0}]
[null,{"$f":"IF(OFFSET(B14,-1,0)=\"例\",1,N(INDIRECT(\"R[-1]C\",FALSE))+1)","v":2},null,null,null,{"$f":"IFERROR(VLOOKUP(E14,蛍光灯消費電力データ!$B:$C,2,0),\"\")","v":""},null,null,1E-3,"",null,null,0.95,"既存設備と\n同じ",null,1E-3,0]
[null,3,null,null,null,{"$f":"IFERROR(VLOOKUP(E15,蛍光灯消費電力データ!$B:$C,2,0),\"\")","v":""},null,null,1E-3,"",null,null,0.95,"既存設備と\n同じ",null,1E-3,0]
[null,4,null,null,null,{"$f":"IFERROR(VLOOKUP(E16,蛍光灯消費電力データ!$B:$C,2,0),\"\")","v":""},null,null,1E-3,"",null,null,0.95,"既存設備と\n同じ",null,1E-3,0]
[null,5,null,null,null,{"$f":"IFERROR(VLOOKUP(E17,蛍光灯消費電力データ!$B:$C,2,0),\"\")","v":""},null,null,1E-3,"",null,null,0.95,"既存設備と\n同じ",null,1E-3,0]
[null,6,null,null,null,{"$f":"IFERROR(VLOOKUP(E18,蛍光灯消費電力データ!$B:$C,2,0),\"\")","v":""},null,null,1E-3,"",null,null,0.95,"既存設備と\n同じ",null,1E-3,0]
[null,7,null,null,null,{"$f":"IFERROR(VLOOKUP(E19,蛍光灯消費電力データ!$B:$C,2,0),\"\")","v":""},null,null,1E-3,"",null,null,0.95,"既存設備と\n同じ",null,1E-3,0]
[null,8,null,null,null,{"$f":"IFERROR(VLOOKUP(E20,蛍光灯消費電力データ!$B:$C,2,0),\"\")","v":""},null,null,1E-3,"",null,null,0.95,"既存設備と\n同じ",null,1E-3,0]
[null,9,null,null,null,{"$f":"IFERROR(VLOOKUP(E21,蛍光灯消費電力データ!$B:$C,2,0),\"\")","v":""},null,null,1E-3,"",null,null,0.95,"既存設備と\n同じ",null,1E-3,0]
[null,10,null,null,null,{"$f":"IFERROR(VLOOKUP(E22,蛍光灯消費電力データ!$B:$C,2,0),\"\")","v":""},null,null,1E-3,"",null,null,0.95,"既存設備と\n同じ",null,1E-3,0]
[null,11,null,null,null,{"$f":"IFERROR(VLOOKUP(E23,蛍光灯消費電力データ!$B:$C,2,0),\"\")","v":""},null,null,1E-3,"",null,null,0.95,"既存設備と\n同じ",null,1E-3,0]
[null,12,null,null,null,{"$f":"IFERROR(VLOOKUP(E24,蛍光灯消費電力データ!$B:$C,2,0),\"\")","v":""},null,null,1E-3,"",null,null,0.95,"既存設備と\n同じ",null,1E-3,0]
[null,13,null,null,null,{"$f":"IFERROR(VLOOKUP(E25,蛍光灯消費電力データ!$B:$C,2,0),\"\")","v":""},null,null,1E-3,"",null,null,0.95,"既存設備と\n同じ",null,1E-3,0]
[null,14,null,null,null,{"$f":"IFERROR(VLOOKUP(E26,蛍光灯消費電力データ!$B:$C,2,0),\"\")","v":""},null,null,1E-3,"",null,null,0.95,"既存設備と\n同じ",null,1E-3,0]
[null,15,null,null,null,{"$f":"IFERROR(VLOOKUP(E27,蛍光灯消費電力データ!$B:$C,2,0),\"\")","v":""},null,null,1E-3,"",null,null,0.95,"既存設備と\n同じ",null,1E-3,0]
[null,16,null,null,null,{"$f":"IFERROR(VLOOKUP(E28,蛍光灯消費電力データ!$B:$C,2,0),\"\")","v":""},null,null,1E-3,"",null,null,0.95,"既存設備と\n同じ",null,1E-3,0]
[null,17,null,null,null,{"$f":"IFERROR(VLOOKUP(E29,蛍光灯消費電力データ!$B:$C,2,0),\"\")","v":""},null,null,1E-3,"",null,null,0.95,"既存設備と\n同じ",null,1E-3,0]
[null,18,null,null,null,{"$f":"IFERROR(VLOOKUP(E30,蛍光灯消費電力データ!$B:$C,2,0),\"\")","v":""},null,null,1E-3,"",null,null,0.95,"既存設備と\n同じ",null,1E-3,0]
[null,19,null,null,null,{"$f":"IFERROR(VLOOKUP(E31,蛍光灯消費電力データ!$B:$C,2,0),\"\")","v":""},null,null,1E-3,"",null,null,0.95,"既存設備と\n同じ",null,1E-3,0]
[null,{"$f":"IF(OFFSET(B32,-1,0)=\"例\",1,N(INDIRECT(\"R[-1]C\",FALSE))+1)","v":20},null,null,null,{"$f":"IFERROR(VLOOKUP(E32,蛍光灯消費電力データ!$B:$C,2,0),\"\")","v":""},null,null,1E-3,{"$f":"IFERROR(F32*G32*H32*I32,\"\")","v":""},null,null,0.95,"既存設備と\n同じ",null,1E-3,0]
[null,"-",null,null,null,null,null,"既存設備\n合計",null,"既存設備\n総消費電力量\n [kWh/年]",null,null,null,null,"導入予定設備\n合計",null,"導入予定設備\n総消費電力量\n [kWh/年]","省電力量 *6\n[kWh/年]"]
[null,null,null,null,null,null,null,{"$f":"SUM(H13:H32)","v":0},null,{"$f":"SUM(J13:J32)","v":0},null,null,null,null,{"$f":"SUM(O13:O32)","v":0},null,{"$f":"SUM(Q13:Q32)","v":0},{"$f":"Q34-J34","v":0}]
[null,null,"行の追加/削減は左上のボタンを押してください。"]
[]
[null,null,"*1:　設置する部屋名称またはエリア名称など記入してください。配置図にも部屋名称またはエリア名称などを明示してください。"]
[null,null,"*2:　既存設備の\"種別\"をプルダウンより選択してください。"]
[null,null,"*3:　既存設備の”種類・灯数等”をプルダウンより選択してください。"]
[null,null,"*4:　年間稼働時間は、\"年間稼働時間の計算過程シート\"にその計算過程を示してください。"]
[null,null,"*5：　調光制御機能等を有する照明器具が補助対象です。"]
[null,null,"*6：　交付申請書の「4-1_二酸化炭素排出量簡易換算シート」の\"④省エネルギー量\"に転記してください。"]

{"sheet":"年間稼働時間の計算過程","index":1,"n_rows":17,"n_cols":10,"rows_kept":17,"cut":false,"hidden":false,"merged":[]}
[null,"*：　週、日毎など集計方法に応じて表を適宜変更して下さい。"]
[]
[null,"居室",null,null,null,null,"倉庫"]
[null,"月","稼働時間[h/月]","稼働時間[h/日]","稼働日[日/月]",null,"月","稼働時間[h/月]","稼働時間[h/日]","稼働日[日/月]"]
[null,4,{"$f":"D5*E5","v":160},8,20,null,4,{"$f":"I5*J5","v":20},1,20]
[null,5,{"$f":"D6*E6","v":160},8,20,null,5,{"$f":"I6*J6","v":20},1,20]
[null,6,160,8,20,null,6,20,1,20]
[null,7,160,8,20,null,7,20,1,20]
[null,8,160,8,20,null,8,20,1,20]
[null,9,160,8,20,null,9,20,1,20]
[null,10,160,8,20,null,10,20,1,20]
[null,11,160,8,20,null,11,20,1,20]
[null,12,160,8,20,null,12,20,1,20]
[null,1,160,8,20,null,1,20,1,20]
[null,2,160,8,20,null,2,20,1,20]
[null,3,160,8,20,null,3,20,1,20]
[null,"年稼働時間\n[h/年]",{"$f":"SUM(C5:C16)","v":1920},null,null,null,"年稼働時間\n[h/年]",{"$f":"SUM(H5:H16)","v":240}]

{"sheet":"蛍光灯消費電力データ","index":2,"n_rows":169,"n_cols":7,"rows_kept":169,"cut":false,"hidden":true,"merged":[]}
["種別","種類・灯数等","定格消費電力"]
["直管蛍光ランプ","直管蛍光ランプFHF16形　1灯用　・　高出力26",{"$f":"LOOKUP(10^17,RIGHT(B2,COLUMN($1:$1))*1)","v":26},null,"B列の直管蛍光ランプ全体を選択して、セル名称を種別の”直管蛍光ランプ\"とする。"]
["環形蛍光ランプ","直管蛍光ランプFHF16形　2灯用　・　高出力50",50,null,"B列の環形蛍光ランプ全体を選択して、セル名称を種別の”環形蛍光ランプ\"とする。"]
["コンパクト蛍光ランプFDL_FPL_FHP","直管蛍光ランプFHF32形　1灯用　・　高出力48",48,null,"以下同様に…定義する事"]
["コンパクト蛍光ランプFHT_FPL","直管蛍光ランプFHF32形　1灯用　・　定格出力　又は　不明35",35]
["HIDランプ","直管蛍光ランプFHF32形　2灯用　・　高出力95",95]
["電球形蛍光ランプ","直管蛍光ランプFHF32形　2灯用　・　定格出力　又は　不明70",70]
["クリプトン電球","直管蛍光ランプFHF32形　3灯用　・　高出力143",143]
["白熱電球","直管蛍光ランプFHF32形　3灯用　・　定格出力　又は　不明105",105]
["ハロゲン電球_JD110V","直管蛍光ランプFHF32形　4灯用　・　高出力190",190,null,"1234abcd5678"]
[null,"直管蛍光ランプFHF32形　4灯用　・　定格出力　又は　不明140",140,null,"=LOOKUP(10^17,RIGHT(A1,COLUMN($1:$1))*1)"]
[null,"直管蛍光ランプFHF32形　5灯用　・　高出力238",238,null,null,"COLUMN($1:$1)","{1,2,3,4,5,6,7,8,・・・}のような配列が返されます。"]
[null,"直管蛍光ランプFHF32形　5灯用　・　定格出力　又は　不明175",175,null,null,"RIGHT(A1,COLUMN($1:$1))","配列となっているCOLUMN関数を引数にしているので、{8,78,678,5678,d5678,cd5678,bcd5678,・・・}のような配列が返されます。"]
[null,"直管蛍光ランプFHF32形　6灯用　・　高出力285",285,null,null,"RIGHT(A1,COLUMN($1:$1))*1","*1で結果が数値以外はエラーとなります。"]
[null,"直管蛍光ランプFHF32形　6灯用　・　定格出力　又は　不明210",210,null,null,"LOOKUP(10^17,RIGHT(A1,COLUMN($1:$1))*1)","配列から10^17の数値以下の最大値が取り出されます。"]
[null,"直管蛍光ランプFHF63形　1灯用64",64]
[null,"直管蛍光ランプFHF63形　2灯用125",125]
[null,"直管蛍光ランプFHF86形　1灯用87",87]
[null,"直管蛍光ランプFHF86形　2灯用172",172]
[null,"直管蛍光ランプFHF86形　3灯用259",259]
[null,"直管蛍光ランプFL20・FLR20形 1灯用21",21]
[null,"直管蛍光ランプFL20・FLR20形 2灯用41",41]
[null,"直管蛍光ランプFL20・FLR20形 3灯用62",62]
[null,"直管蛍光ランプFL20・FLR20形 4灯用82",82]
[null,"直管蛍光ランプFL20・FLR20形 5灯用103",103]
[null,"直管蛍光ランプFL20・FLR20形 6灯用123",123]
[null,"直管蛍光ランプFL40形 1灯用　・　磁気式安定器42",42]
[null,"直管蛍光ランプFL40形 2灯用　・　磁気式安定器83",83]
[null,"直管蛍光ランプFL40形 3灯用　・　磁気式安定器125",125]
[null,"直管蛍光ランプFL40形 4灯用　・　磁気式安定器166",166]
[null,"直管蛍光ランプFL40形 5灯用　・　磁気式安定器208",208]
[null,"直管蛍光ランプFL40形 6灯用　・　磁気式安定器249",249]
[null,"直管蛍光ランプFLR40形 1灯用　・　磁気式安定器41",41]
[null,"直管蛍光ランプFLR40形 2灯用　・　磁気式安定器78",78]
[null,"直管蛍光ランプFLR40形 3灯用　・　磁気式安定器119",119]
[null,"直管蛍光ランプFLR40形 4灯用　・　磁気式安定器156",156]
[null,"直管蛍光ランプFLR40形 5灯用　・　磁気式安定器197",197]
[null,"直管蛍光ランプFLR40形 6灯用　・　磁気式安定器234",234]
[null,"直管蛍光ランプFLR110形 1灯用　・　磁気式安定器108",108]
[null,"直管蛍光ランプFLR110形 1灯用　・　電子安定器94",94]
[null,"直管蛍光ランプFLR110形 2灯用　・　磁気式安定器208",208]
[null,"直管蛍光ランプFLR110形 2灯用　・　電子安定器187",187]
[null,"直管蛍光ランプFLR110形 3灯用　・　磁気式安定器316",316]
[null,"直管蛍光ランプFLR110形 3灯用　・　電子安定器281",281]
[null,"環形蛍光ランプFCL20形　1灯用22",22]
[null,"環形蛍光ランプFCL30形　1灯用31",31]
[null,"環形蛍光ランプFCL32形　1灯用36",36]
[null,"環形蛍光ランプFCL40形　1灯用47",47]
[null,"環形蛍光ランプFCL32形+30形64",64]
[null,"環形蛍光ランプFCL40形+32形80",80]
[null,"環形蛍光ランプFCL40形+32形+30形108",108]
[null,"環形蛍光ランプFHC13形　1灯用16",16]
[null,"環形蛍光ランプFHC20形　1灯用27",27]
[null,"環形蛍光ランプFHC27形　1灯用36",36]
[null,"環形蛍光ランプFHC34形+13形59",59]
[null,"環形蛍光ランプFHC27形+20形62",62]
[null,"環形蛍光ランプFHC34形+20形70",70]
[null,"環形蛍光ランプFHC34形+27形81",81]
[null,"環形蛍光ランプFHC34形+27形+20形106",106]
[null,"環形蛍光ランプFHC41形+34形+27形123",123]
[null,"環形蛍光ランプFHD40形　1灯用36",36]
[null,"環形蛍光ランプFHD70形　1灯用64",64]
[null,"環形蛍光ランプFHD85形　1灯用76",76]
[null,"環形蛍光ランプFHD100形　1灯用91",91]
[null,"環形蛍光ランプFHD100形+40形120",120]
[null,"コンパクト蛍光ランプFDL13形　1灯用15",{"$f":"LOOKUP(10^17,RIGHT(B66,COLUMN($1:$1))*1)","v":15}]
[null,"コンパクト蛍光ランプFDL18形　1灯用18",18]
[null,"コンパクト蛍光ランプFDL27形　1灯用25",25]
[null,"コンパクト蛍光ランプFPL13・FML13形　1灯用18",18]
[null,"コンパクト蛍光ランプFPL18・FML18形　1灯用22",22]
[null,"コンパクト蛍光ランプFPL27形・FML27形 1灯用24",24]
[null,"コンパクト蛍光ランプFPL36形・FML36形 1灯用36",36]
[null,"コンパクト蛍光ランプFPL36形・FML36形 2灯用70",70]
[null,"コンパクト蛍光ランプFPL36形 3灯用106",106]
[null,"コンパクト蛍光ランプFPL36形 4灯用140",140]
[null,"コンパクト蛍光ランプFPL55形 3灯用159",159]
[null,"コンパクト蛍光ランプFPL55形 4灯用210",210]
[null,"コンパクト蛍光ランプFHP23形 1灯用26",26]
[null,"コンパクト蛍光ランプFHP23形 2灯用49",49]
[null,"コンパクト蛍光ランプFHP32形 3灯用　・　省電力93",93]
[null,"コンパクト蛍光ランプFHP32形 3灯用　・　定格出力　又は　不明105",105]
[null,"コンパクト蛍光ランプFHP32形 4灯用　・　省電力124",124]
[null,"コンパクト蛍光ランプFHP32形 4灯用　・　定格出力　又は　不明138",138]
[null,"コンパクト蛍光ランプFHP45形 3灯用141",141]
[null,"コンパクト蛍光ランプFHP45形 4灯用188",188]
[null,"コンパクト蛍光ランプFHP105形　1灯用92",92]
[null,"コンパクト蛍光ランプFHP105形　2灯用218",218]
[null,"コンパクト蛍光ランプFHT16形 1灯用19",19]
[null,"コンパクト蛍光ランプFHT24形 1灯用27",27]
[null,"コンパクト蛍光ランプFHT24形 2灯用53",53]
[null,"コンパクト蛍光ランプFHT24形 3灯用80",80]
[null,"コンパクト蛍光ランプFHT24形 4灯用106",106]
[null,"コンパクト蛍光ランプFHT32形 1灯用35",35]
[null,"コンパクト蛍光ランプFHT32形 2灯用70",70]
[null,"コンパクト蛍光ランプFHT32形 3灯用105",105]
[null,"コンパクト蛍光ランプFHT32形 4灯用140",140]
[null,"コンパクト蛍光ランプFHT42形 1灯用45",45]
[null,"コンパクト蛍光ランプFHT42形 2灯用90",90]
[null,"コンパクト蛍光ランプFHT42形 3灯用135",135]
[null,"コンパクト蛍光ランプFHT42形 4灯用180",180]
[null,"コンパクト蛍光ランプFHT57形 1灯用65",65]
[null,"コンパクト蛍光ランプFHT57形 2灯用144",144]
[null,"コンパクト蛍光ランプFHT57形 3灯用209",209]
[null,"コンパクト蛍光ランプFHT57形 4灯用288",288]
[null,"コンパクト蛍光ランプFPL/HF32形 3灯用103",103]
[null,"コンパクト蛍光ランプFPL/HF32形 4灯用136",136]
[null,"コンパクト蛍光ランプFPL/HF45形 3灯用141",141]
[null,"コンパクト蛍光ランプFPL/HF45形 4灯用188",188]
[null,"HIDランプ高圧水銀ランプ 40形52",52]
[null,"HIDランプ高圧水銀ランプ 80形97",97]
[null,"HIDランプ高圧水銀ランプ 100形115",115]
[null,"HIDランプ高圧水銀ランプ 200形213",213]
[null,"HIDランプ高圧水銀ランプ 250形260",260]
[null,"HIDランプ高圧水銀ランプ 300形310",310]
[null,"HIDランプ高圧水銀ランプ 400形415",415]
[null,"HIDランプ高圧水銀ランプ 700形730",730]
[null,"HIDランプ高圧水銀ランプ 1000形1030",1030]
[null,"HIDランプメタルハライドランプ 100形114",114]
[null,"HIDランプメタルハライドランプ 200形215",215]
[null,"HIDランプメタルハライドランプ 250形260",260]
[null,"HIDランプメタルハライドランプ 300形310",310]
[null,"HIDランプメタルハライドランプ 400形415",415]
[null,"HIDランプメタルハライドランプ 700形730",730]
[null,"HIDランプメタルハライドランプ 1000形1030",1030]
[null,"HIDランプセラミックメタルハライドランプ 35形46",46]
[null,"HIDランプセラミックメタルハライドランプ 70形86",86]
[null,"HIDランプセラミックメタルハライドランプ 150形　・　磁気式安定器165",165]
[null,"HIDランプセラミックメタルハライドランプ 150形　・　電子安定器169",169]
[null,"HIDランプセラミックメタルハライドランプ 180形205",205]
[null,"HIDランプセラミックメタルハライドランプ 190形210",{"$f":"LOOKUP(10^17,RIGHT(B130,COLUMN($1:$1))*1)","v":210}]
[null,"HIDランプセラミックメタルハライドランプ 220形240",240]
[null,"HIDランプセラミックメタルハライドランプ 230形250",250]
[null,"HIDランプセラミックメタルハライドランプ 270形292",292]
[null,"HIDランプセラミックメタルハライドランプ 290形307",307]
[null,"HIDランプセラミックメタルハライドランプ 360形390",390]
[null,"HIDランプセラミックメタルハライドランプ 100形110",110]
[null,"HIDランプ高圧ナトリウムランプ 40形52",52]
[null,"HIDランプ高圧ナトリウムランプ 75形94",94]
[null,"HIDランプ高圧ナトリウムランプ 110形125",125]
[null,"HIDランプ高圧ナトリウムランプ 180形198",198]
[null,"HIDランプ高圧ナトリウムランプ 220形238",238]
[null,"HIDランプ高圧ナトリウムランプ 270形288",288]
[null,"HIDランプ高圧ナトリウムランプ 360形384",384]
[null,"HIDランプ高圧ナトリウムランプ 660形700",700]
[null,"HIDランプ高圧ナトリウムランプ 940形990",990]
[null,"HIDランプバラストレス水銀ランプ 100形100",100]
[null,"HIDランプバラストレス水銀ランプ 160形160",160]
[null,"HIDランプバラストレス水銀ランプ 250形250",250]
[null,"HIDランプバラストレス水銀ランプ 300形300",300]
[null,"HIDランプバラストレス水銀ランプ 500形500",500]
[null,"HIDランプバラストレス水銀ランプ 750形750",750]
[null,"電球形蛍光ランプEFA10・EFD10形7",7]
[null,"電球形蛍光ランプEFA15・EFD15形10",10]
[null,"電球形蛍光ランプEFA25・EFD25形20",20]
[null,"クリプトン電球40形36",36]
[null,"クリプトン電球60形54",54]
[null,"クリプトン電球100形90",90]
[null,"クリプトン電球100形90",90]
[null,"白熱電球40形36",36]
[null,"白熱電球60形54",54]
[null,"白熱電球100形90",90]
[null,"ハロゲン電球_JD110V60W 55",55]
[null,"ハロゲン電球_JD110V65W 65",65]
[null,"ハロゲン電球_JD110V85W 85",85]
[null,"ハロゲン電球_JD110V90W 90",90]
[null,"ハロゲン電球_JD110V130W 130",130]
[null,"ハロゲン電球_JD110V200W 200",{"$f":"LOOKUP(10^17,RIGHT(B167,COLUMN($1:$1))*1)","v":200}]
[null,"ハロゲン電球_JD110V250W 250",{"$f":"LOOKUP(10^17,RIGHT(B168,COLUMN($1:$1))*1)","v":250}]
[null,"ハロゲン電球_JD110V500W 500",{"$f":"LOOKUP(10^17,RIGHT(B169,COLUMN($1:$1))*1)","v":500}]